bitfinex-derivatives/quotes_BTCF0:USTF0_20260207
["timestamp","ask_amount","ask_price","bid_price","bid_amount"]
[1770464264254,0.27145596,67901.0,67878.0,0.28512454]
[1770464265152,0.014741,67890.0,67873.0,0.28526695]
[1770464266049,0.28619596,67893.0,67873.0,0.30001095]
[1770464266354,0.014741,67891.0,67876.0,0.28512454]
[1770464266853,0.28619696,67888.0,67874.0,0.28512454]
[1770464267248,0.27145596,67888.0,67874.0,0.28512454]
[1770464267453,0.27145596,67886.0,67873.0,0.00014241]
[1770464267956,0.014741,67890.0,67873.0,0.28526695]
[1770464268942,0.014741,67888.0,67873.0,0.28526695]
[1770464269147,0.27145596,67891.0,67873.0,0.28526695]
[1770464269352,0.014742,67886.0,67873.0,0.28526695]
[1770464269556,0.014742,67884.0,67873.0,0.28426695]
[1770464269955,0.014742,67884.0,67868.0,0.014745]
[1770464270157,0.014742,67884.0,67868.0,0.29986954]
[1770464270458,0.27145596,67886.0,67868.0,0.28512454]
[1770464270459,0.014743,67882.0,67868.0,0.28512454]
[1770464270749,0.014738,67902.0,67851.0,0.14646713]
[1770464270750,0.27145596,67908.0,67886.0,0.28512454]
[1770464270952,0.014738,67901.0,67887.0,0.29986554]
[1770464271150,0.014738,67901.0,67887.0,0.28512454]
[1770464271751,0.014737,67908.0,67891.0,0.28512454]
[1770464272142,0.014737,67908.0,67893.0,0.28512454]
[1770464272447,0.014738,67904.0,67893.0,0.28512454]
[1770464273647,0.014738,67902.0,67886.0,0.29986554]
[1770464273846,0.014738,67905.0,67891.0,0.28512454]
[1770464274148,0.014737,67907.0,67893.0,0.28512454]
[1770464274851,0.014736,67910.0,67893.0,0.28512454]
[1770464275048,0.014736,67910.0,67895.0,0.28512454]
[1770464275454,0.27145596,67924.0,67902.0,0.28512454]
[1770464275650,0.72976431,67955.0,67913.0,0.28512454]
[1770464275651,0.014732,67931.0,67913.0,0.28512454]
[1770464275848,0.014731,67934.0,67915.0,0.28512454]
[1770464276353,0.014732,67932.0,67915.0,0.28512454]
[1770464276552,0.014732,67932.0,67906.0,0.11722539]
[1770464276553,0.014731,67936.0,67917.0,0.28512454]
[1770464277354,0.014731,67936.0,67908.0,0.11722539]
[1770464277355,0.014731,67936.0,67919.0,0.28512454]
[1770464277754,0.01473,67940.0,67920.0,0.014734]
[1770464277944,0.01473,67940.0,67921.0,0.28512454]
[1770464279157,0.27145596,67940.0,67921.0,0.28512454]
[1770464280059,0.27145596,67948.0,67921.0,0.28512454]
[1770464280265,0.014729,67943.0,67927.0,0.28512454]
[1770464280560,0.014729,67946.0,67928.0,0.29985654]
[1770464280860,0.27145596,67955.0,67931.0,0.28512454]
[1770464281045,0.014723,67971.0,67910.0,0.16675522]
[1770464281046,0.27145596,67962.0,67940.0,0.28512454]
[1770464281357,0.014727,67954.0,67940.0,0.28512454]
[1770464281852,0.014726,67959.0,67940.0,0.28512454]
[1770464282063,0.27145596,67962.0,67942.0,0.28512454]
[1770464282249,0.014725,67961.0,67942.0,0.28512454]
[1770464282961,0.27145596,67947.0,67923.0,0.28512454]
[1770464283164,0.27145596,67945.0,67923.0,0.28512454]
[1770464283461,0.27145596,67945.0,67928.0,0.29985654]
[1770464283656,0.014728,67949.0,67928.0,0.29985654]
[1770464284156,0.014727,67952.0,67932.0,0.28512454]
[1770464284858,0.014728,67949.0,67932.0,0.28512454]
[1770464285960,0.27145596,67960.0,67932.0,0.29985654]
[1770464286155,0.014727,67953.0,67932.0,0.29985654]
[1770464286751,0.27145596,67960.0,67918.0,0.014734]
[1770464286752,0.014726,67957.0,67941.0,0.27598076]
[1770464287556,0.014726,67960.0,67945.0,0.27598076]
[1770464287758,0.014726,67957.0,67945.0,0.27598076]
[1770464288160,0.014726,67960.0,67945.0,0.27598076]
[1770464289264,0.014726,67958.0,67945.0,0.27598076]
[1770464290461,0.014725,67961.0,67945.0,0.27598076]
[1770464292160,0.014725,67964.0,67947.0,0.27507641]
[1770464292463,0.014725,67962.0,67947.0,0.27507641]
[1770464292963,0.014725,67965.0,67947.0,0.28980441]
[1770464293157,0.014725,67961.0,67947.0,0.27507641]
[1770464293866,0.014726,67959.0,67947.0,0.27507641]
[1770464294450,0.014725,67963.0,67947.0,0.27507641]
[1770464294759,0.014725,67961.0,67947.0,0.27507641]
[1770464295565,0.014725,67964.0,67949.0,0.27507641]
[1770464296062,0.26512048,67973.0,67953.0,0.27507641]
[1770464296461,0.014724,67967.0,67953.0,0.27507641]
[1770464296658,0.014719,67992.0,67959.0,0.27507641]
[1770464296659,0.26512048,67982.0,67959.0,0.27507641]
[1770464296859,0.26512048,67982.0,67961.0,0.27507641]
[1770464297761,0.014721,67982.0,67966.0,0.27507641]
[1770464297955,0.014719,67989.0,67971.0,0.014723]
[1770464298265,0.01472,67987.0,67972.0,0.27507641]
[1770464298462,0.014719,67990.0,67974.0,0.27507641]
[1770464298860,0.014718,67993.0,67976.0,0.27507641]
[1770464299165,0.014718,67993.0,67978.0,0.27507641]
[1770464299465,0.014714,68014.0,67978.0,0.27507641]
[1770464299466,0.26512048,67997.0,67978.0,0.27507641]
[1770464299662,0.01472,67988.0,67978.0,0.27507641]
[1770464300052,0.26512048,67984.0,67962.0,0.27507641]
[1770464300261,0.014722,67975.0,67962.0,0.27507641]
[1770464301864,0.014724,67969.0,67954.0,0.27507641]
[1770464304068,0.014724,67969.0,67954.0,0.28980341]
[1770464306766,0.014726,67959.0,67944.0,0.28980541]
[1770464307459,0.014726,67959.0,67944.0,0.27507641]
[1770464309272,0.014728,67951.0,67944.0,0.27507641]
[1770464309472,0.26512048,67963.0,67944.0,4.1e-07]
[1770464309473,0.014728,67950.0,67944.0,4.1e-07]
[1770464309967,0.014728,67948.0,67941.0,0.00013034]
[1770464310166,0.014728,67951.0,67941.0,0.27520675]
[1770464310969,0.014727,67955.0,67941.0,0.27520675]
[1770464311967,0.014727,67953.0,67941.0,0.27520675]
[1770464313970,0.014726,67956.0,67941.0,0.27520675]
[1770464315271,0.014726,67956.0,67941.0,0.28993675]
[1770464315575,0.014725,67964.0,67952.0,0.27507641]
[1770464315975,0.26100307,67973.0,67952.0,0.27507641]
[1770464316269,0.014725,67961.0,67952.0,0.27507641]
[1770464316868,0.014726,67959.0,67952.0,0.27507641]
[1770464317075,0.014726,67959.0,67945.0,0.27375163]
[1770464317264,0.014727,67953.0,67941.0,0.00013034]
[1770464318972,0.01473,67940.0,67926.0,0.25902263]
[1770464319467,0.01473,67938.0,67926.0,0.25902263]
[1770464319773,0.014731,67935.0,67919.0,0.25902263]
[1770464320070,0.00013972,67934.0,67919.0,0.25902263]
[1770464320366,0.014731,67933.0,67919.0,0.25902263]
[1770464322371,0.014732,67931.0,67919.0,0.25902263]
[1770464322568,0.01487072,67934.0,67919.0,0.25902263]
[1770464322768,0.014732,67932.0,67919.0,0.25902263]
[1770464323166,0.014732,67930.0,67919.0,0.25902263]
[1770464325974,0.014733,67928.0,67919.0,0.25902263]
[1770464326175,0.014733,67924.0,67911.0,0.25902263]
[1770464326376,0.014734,67922.0,67911.0,0.25902263]
[1770464326973,0.014733,67925.0,67911.0,0.25902263]
[1770464328270,0.26100307,67930.0,67911.0,0.25902263]
[1770464329070,0.00013972,67934.0,67903.0,0.25902263]
[1770464329071,0.26100307,67922.0,67903.0,0.25902263]
[1770464329371,0.014736,67913.0,67903.0,0.25902263]
[1770464329563,0.014735,67916.0,67903.0,0.25902263]
[1770464330168,0.00011232,67921.0,67895.0,0.25902263]
[1770464330573,0.014736,67912.0,67895.0,0.25902263]
[1770464330768,0.00011232,67921.0,67895.0,0.25902263]
[1770464330769,0.014737,67910.0,67895.0,0.25902263]
[1770464330974,0.014737,67907.0,67895.0,0.25902263]
[1770464331272,0.00013972,67906.0,67895.0,0.25902263]
[1770464331474,0.014738,67905.0,67895.0,0.25902263]
[1770464331678,0.00013972,67906.0,67894.0,0.0001688]
[1770464331978,0.00013972,67906.0,67894.0,8e-07]
[1770464332276,0.26114279,67906.0,67894.0,8e-07]
[1770464332578,0.014739,67896.0,67894.0,8e-07]
[1770464332779,0.014739,67896.0,67888.0,0.06189809]
[1770464333177,0.014739,67896.0,67865.0,0.17540016]
[1770464333178,0.01474,67895.0,67876.0,0.00229888]
[1770464333377,0.01474,67893.0,67876.0,0.00229888]
[1770464333882,0.01474,67893.0,67877.0,0.00256128]
[1770464334882,0.014741,67891.0,67877.0,0.00256128]
[1770464335184,0.00017081,67890.0,67877.0,0.00256128]
[1770464338390,0.01474,67893.0,67877.0,0.00256128]
[1770464339393,0.00013771,67892.0,67877.0,0.00256128]
[1770464339791,0.014741,67889.0,67877.0,0.00256128]
[1770464339997,0.014741,67887.0,67877.0,0.00256128]
[1770464342000,0.014741,67887.0,67873.0,0.014744]
[1770464342703,0.014741,67890.0,67873.0,0.014744]
[1770464343202,0.014742,67887.0,67871.0,0.014745]
[1770464343802,0.00013771,67892.0,67866.0,0.14412012]
[1770464344006,0.00013771,67892.0,67873.0,0.15003987]
[1770464344401,0.014739,67899.0,67883.0,0.014742]
[1770464344608,0.014739,67900.0,67885.0,0.014742]
[1770464344801,0.014739,67898.0,67882.0,0.014742]
[1770464345109,0.014739,67898.0,67873.0,0.15003987]
[1770464345110,0.27343703,67898.0,67873.0,0.16478387]
[1770464345407,0.27343703,67898.0,67873.0,0.014744]
[1770464345603,0.27343703,67898.0,67870.0,0.014745]
[1770464345914,0.014742,67883.0,67867.0,0.014746]
[1770464346511,0.27347355,67888.0,67862.0,0.014747]
[1770464346703,0.01474,67895.0,67862.0,0.014747]
[1770464346704,0.014744,67877.0,67862.0,0.014747]
[1770464346908,0.014744,67877.0,67851.0,0.00010435]
[1770464347100,0.014743,67882.0,67867.0,0.014746]
[1770464348414,0.014743,67882.0,67869.0,0.014745]
[1770464349311,0.014743,67882.0,67866.0,0.014746]
[1770464350004,0.27030206,67890.0,67857.0,0.14648356]
[1770464350412,0.014743,67881.0,67866.0,0.014746]
[1770464350607,0.26824786,67879.0,67860.0,0.00135283]
[1770464351501,0.014745,67872.0,67860.0,0.00135283]
[1770464352512,0.014745,67870.0,67860.0,0.00135283]
[1770464352712,0.014745,67870.0,67853.0,0.014749]
[1770464353008,0.014745,67870.0,67855.0,0.014748]
[1770464353212,0.014745,67870.0,67857.0,0.014748]
[1770464353614,0.014745,67870.0,67854.0,0.014748]
[1770464353914,0.014744,67876.0,67859.0,0.014747]
[1770464354812,0.014744,67874.0,67859.0,0.014747]
[1770464357016,0.26946176,67877.0,67859.0,0.014747]
[1770464357211,0.26946176,67877.0,67856.0,0.014748]
[1770464357409,0.26946176,67877.0,67858.0,0.014748]
[1770464357606,0.014745,67871.0,67858.0,0.014748]
[1770464357806,0.014745,67871.0,67855.0,0.014748]
[1770464358614,0.28424274,67871.0,67855.0,0.014748]
[1770464359112,0.014745,67871.0,67855.0,0.014748]
[1770464359913,0.014744,67874.0,67857.0,0.014748]
[1770464360115,0.014745,67872.0,67857.0,0.014748]
[1770464361410,0.014744,67875.0,67851.0,0.00010435]
[1770464361612,0.014743,67879.0,67866.0,0.014746]
[1770464361916,0.014743,67879.0,67865.0,0.014746]
[1770464362411,0.014744,67877.0,67864.0,0.014746]
[1770464362718,0.014744,67875.0,67861.0,0.014747]
[1770464363114,0.014744,67874.0,67861.0,0.014747]
[1770464363417,0.014745,67872.0,67858.0,0.014747]
[1770464364318,0.27261805,67872.0,67851.0,0.00010435]
[1770464364710,0.014746,67868.0,67854.0,0.014749]
[1770464366208,0.27217839,67869.0,67851.0,0.00010435]
[1770464366409,0.014744,67873.0,67851.0,0.00010435]
[1770464366410,0.27217839,67858.0,67851.0,0.00010435]
[1770464366610,0.27217839,67858.0,67836.0,0.014752]
[1770464367013,0.014749,67851.0,67836.0,0.014752]
[1770464367524,0.00010435,67850.0,67841.0,0.014751]
[1770464367717,0.27227639,67872.0,67838.0,0.14680528]
[1770464368107,0.27227639,67872.0,67850.0,0.014749]
[1770464368314,0.014746,67866.0,67850.0,0.014749]
[1770464368814,0.27227639,67872.0,67850.0,0.014749]
[1770464369314,0.2718683,67867.0,67833.0,0.014753]
[1770464369515,0.014748,67859.0,67845.0,0.01475]
[1770464369811,0.014748,67855.0,67842.0,0.014751]
[1770464370213,0.01475,67846.0,67828.0,0.0002]
[1770464370407,0.01475,67849.0,67831.0,0.014753]
[1770464370611,0.28620482,67849.0,67831.0,0.014753]
[1770464371110,0.014749,67852.0,67827.0,0.15091538]
[1770464371315,0.014749,67853.0,67837.0,0.014752]
[1770464371511,0.014749,67851.0,67834.0,0.014753]
[1770464371817,0.27148454,67866.0,67823.0,0.0002]
[1770464372016,0.014748,67855.0,67825.0,0.17540016]
[1770464372218,0.014746,67864.0,67846.0,0.01475]
[1770464372413,0.014743,67879.0,67827.0,0.1508633]
[1770464372414,0.28623154,67860.0,67827.0,0.1508633]
[1770464372718,0.27296939,67848.0,67820.0,0.03906031]
[1770464372919,0.014745,67869.0,67836.0,0.014752]
[1770464372920,0.014749,67852.0,67836.0,0.014752]
[1770464373820,0.01475,67850.0,67833.0,0.014753]
[1770464374008,0.014751,67844.0,67823.0,0.0002]
[1770464374214,0.01475,67847.0,67830.0,0.014754]
[1770464374608,0.014747,67864.0,67823.0,0.0002]
[1770464374823,0.27291374,67881.0,67840.0,0.15212983]
[1770464375016,0.27291374,67881.0,67854.0,0.014748]
[1770464375216,0.27291374,67881.0,67866.0,0.014746]
[1770464375620,0.014743,67880.0,67862.0,0.014747]
[1770464375915,0.27291374,67881.0,67848.0,0.19015016]
[1770464376121,0.014744,67875.0,67858.0,0.014747]
[1770464376319,0.28768407,67878.0,67862.0,0.014747]
[1770464376518,0.014739,67897.0,67842.0,0.0002]
[1770464376519,0.014741,67889.0,67871.0,0.014745]
[1770464376719,0.014739,67897.0,67871.0,0.014745]
[1770464376720,0.014741,67887.0,67871.0,0.014745]
[1770464376920,0.27335721,67890.0,67874.0,0.014744]
[1770464377221,0.27335721,67890.0,67866.0,0.014746]
[1770464377424,0.27335721,67887.0,67866.0,0.014746]
[1770464377724,0.014742,67884.0,67866.0,0.014746]
[1770464378226,0.27335721,67887.0,67868.0,0.014745]
[1770464378227,0.28809821,67887.0,67868.0,0.014745]
[1770464379017,0.27316324,67876.0,67861.0,0.014747]
[1770464379726,0.27318913,67891.0,67863.0,0.014746]
[1770464380521,0.27318913,67891.0,67859.0,0.014747]
[1770464380723,0.014744,67877.0,67859.0,0.014747]
[1770464381024,0.073694,67901.0,67848.0,0.117431]
[1770464381025,0.27174524,67905.0,67860.0,0.15212983]
[1770464381324,0.073613,67976.0,67860.0,0.15212983]
[1770464381325,0.27174524,67910.0,67881.0,0.117431]
[1770464381529,0.27174524,67910.0,67893.0,0.01474]
[1770464381826,0.26683775,67906.0,67881.0,0.117431]
[1770464382027,0.26683775,67906.0,67879.0,0.117431]
[1770464382224,0.26683775,67906.0,67877.0,0.117431]
[1770464382526,0.26683775,67906.0,67891.0,0.01474]
[1770464383222,0.26073661,67895.0,67869.0,0.19014516]
[1770464383527,0.26073661,67895.0,67867.0,0.00017912]
[1770464383528,0.26073661,67892.0,67874.0,0.014744]
[1770464383727,0.01474,67891.0,67874.0,0.014744]
[1770464385526,0.01474,67891.0,67867.0,0.00017912]
[1770464385527,0.01474,67891.0,67871.0,0.014745]
[1770464388726,0.2611623,67888.0,67867.0,0.00017912]
[1770464388932,0.2611623,67885.0,67867.0,0.00017912]
[1770464390024,0.014742,67883.0,67867.0,0.00017912]
[1770464390527,0.014743,67881.0,67867.0,0.00017912]
[1770464390827,0.2759043,67885.0,67867.0,0.00017912]
[1770464391624,0.014742,67883.0,67867.0,0.00017912]
[1770464392123,0.27639801,67877.0,67867.0,0.00017912]
[1770464392328,0.27639801,67877.0,67857.0,0.014748]
[1770464392329,0.014744,67875.0,67857.0,0.014748]
[1770464392925,0.26165401,67877.0,67852.0,0.14954643]
[1770464393427,0.00012482,67876.0,67852.0,0.26697743]
[1770464394225,0.00012482,67876.0,67853.0,0.33483879]
[1770464394530,0.00012482,67876.0,67862.0,0.014747]
[1770464395127,0.00012482,67876.0,67868.0,0.014745]
[1770464396624,0.014742,67884.0,67868.0,0.014745]
[1770464397822,5.43e-05,67883.0,67868.0,0.014745]
[1770464399117,0.0010543,67883.0,67868.0,0.014745]
[1770464399323,0.0010543,67883.0,67870.0,0.014745]
[1770464399922,0.0010543,67883.0,67860.0,0.117431]
[1770464400127,0.01474,67891.0,67876.0,0.014744]
[1770464400430,0.01474,67894.0,67867.0,0.014746]
[1770464400623,0.01474,67894.0,67862.0,0.132178]
[1770464400624,0.01474,67892.0,67876.0,0.014744]
[1770464401532,0.01474,67893.0,67877.0,0.014743]
[1770464401924,0.01474,67893.0,67879.0,0.014743]
[1770464402120,0.014732,67929.0,67870.0,0.014745]
[1770464402121,0.014739,67900.0,67870.0,0.014745]
[1770464402321,0.014737,67908.0,67874.0,0.014744]
[1770464402525,0.014737,67906.0,67889.0,0.014741]
[1770464403028,0.014737,67906.0,67891.0,0.01474]
[1770464403234,0.014737,67908.0,67893.0,0.01474]
[1770464404634,0.27580797,67916.0,67898.0,0.014739]
[1770464404830,0.27580697,67923.0,67894.0,0.01474]
[1770464405030,0.014734,67921.0,67904.0,0.014737]
[1770464405425,0.26107297,67923.0,67897.0,0.117431]
[1770464405625,0.014733,67924.0,67898.0,0.33526279]
[1770464405832,0.014733,67924.0,67899.0,0.33526279]
[1770464406132,0.26109188,67930.0,67903.0,0.014738]
[1770464406331,0.014734,67923.0,67905.0,0.014737]
[1770464406527,0.014734,67923.0,67898.0,0.117431]
[1770464406528,0.26176444,67935.0,67916.0,0.014735]
[1770464406833,0.014732,67933.0,67916.0,0.014735]
[1770464407032,0.26176444,67935.0,67903.0,0.117431]
[1770464407229,0.26176444,67935.0,67901.0,0.132169]
[1770464407437,0.26176444,67935.0,67907.0,0.117431]
[1770464407628,0.26176444,67935.0,67909.0,0.117431]
[1770464407829,0.01473,67942.0,67922.0,0.014734]
[1770464408130,0.01473,67942.0,67905.0,0.19013716]
[1770464408131,0.01473,67942.0,67924.0,0.014733]
[1770464408337,0.014729,67945.0,67926.0,0.014733]
[1770464409830,0.26234102,67950.0,67921.0,0.14989602]
[1770464410235,0.26234102,67950.0,67931.0,0.014732]
[1770464410631,0.26254179,67936.0,67920.0,0.15212983]
[1770464410929,0.014726,67957.0,67893.0,0.073702]
[1770464410930,0.26254179,67933.0,67909.0,0.014737]
[1770464411328,0.014734,67923.0,67906.0,0.16239666]
[1770464411734,0.014733,67927.0,67909.0,0.014737]
[1770464412537,0.27730727,67930.0,67909.0,0.014737]
[1770464412726,0.27730727,67930.0,67912.0,0.014736]
[1770464413638,0.01473,67942.0,67910.0,0.14567727]
[1770464413840,0.27750091,67946.0,67926.0,0.014733]
[1770464414139,0.27750091,67946.0,67925.0,0.014733]
[1770464414342,0.014729,67943.0,67925.0,0.014733]
[1770464414834,0.01473,67940.0,67921.0,0.014734]
[1770464415039,0.26302835,67938.0,67910.0,0.29753775]
[1770464415240,0.26302835,67938.0,67917.0,0.014735]
[1770464415241,0.014731,67936.0,67917.0,0.014735]
[1770464417236,0.014731,67936.0,67919.0,0.014734]
[1770464417942,0.27796494,67936.0,67919.0,0.014734]
[1770464419644,0.26323394,67936.0,67922.0,0.014734]
[1770464420946,0.26323394,67936.0,67919.0,0.014734]
[1770464424345,0.27796494,67936.0,67919.0,0.014734]
[1770464425548,0.26338496,67920.0,67903.0,0.14762199]
[1770464425854,0.26338496,67918.0,67896.0,0.117431]
[1770464426053,0.26338496,67918.0,67895.0,0.117431]
[1770464426251,0.27811996,67918.0,67902.0,0.15096972]
[1770464427161,0.27811996,67918.0,67903.0,0.014738]
[1770464427956,0.26338496,67918.0,67903.0,0.014738]
[1770464428463,0.26338496,67918.0,67905.0,0.014737]
[1770464429355,0.26338496,67918.0,67907.0,0.014737]
[1770464429552,0.27890622,67924.0,67907.0,0.014737]
[1770464430561,0.27890622,67924.0,67907.0,0.015737]
[1770464431062,0.26395615,67922.0,67907.0,0.001]
[1770464431365,0.26395615,67922.0,67898.0,0.117431]
[1770464431564,0.26395615,67922.0,67897.0,0.117431]
[1770464432065,0.26395615,67922.0,67902.0,0.14605849]
[1770464432459,0.27870451,67916.0,67902.0,0.14605849]
[1770464433360,0.27841162,67913.0,67899.0,0.117431]
[1770464433666,0.014733,67926.0,67896.0,0.19013916]
[1770464433667,0.27842487,67911.0,67898.0,0.117431]
[1770464433867,0.27842487,67911.0,67897.0,0.117431]
[1770464435768,0.26368887,67911.0,67898.0,0.014739]
[1770464437164,0.26423369,67909.0,67895.0,0.14955507]
[1770464439372,0.26423369,67909.0,67897.0,0.014739]
[1770464439774,0.27897069,67909.0,67895.0,0.14955507]
[1770464440074,0.27897069,67909.0,67896.0,0.014739]
[1770464440275,0.26423369,67909.0,67896.0,0.014739]
[1770464441068,0.26423369,67909.0,67895.0,0.14955507]
[1770464442270,0.014737,67908.0,67895.0,0.14955507]
[1770464448079,0.26534477,67926.0,67902.0,0.14660788]
[1770464448377,0.26534477,67924.0,67902.0,0.14660788]
[1770464448777,0.014734,67920.0,67906.0,0.014737]
[1770464448976,0.014734,67923.0,67906.0,0.014737]
[1770464449371,0.014734,67921.0,67906.0,0.014737]
[1770464450680,0.01473,67942.0,67902.0,0.14660788]
[1770464450681,0.014732,67929.0,67910.0,0.15186048]
[1770464450972,0.26471758,67932.0,67912.0,0.117431]
[1770464451170,0.27944958,67932.0,67916.0,0.014735]
[1770464451782,0.26472848,67943.0,67922.0,0.014734]
[1770464452170,0.26472848,67936.0,67915.0,0.117431]
[1770464452483,0.24526225,67916.0,67900.0,0.17540016]
[1770464452681,0.014735,67915.0,67899.0,0.07410874]
[1770464453471,0.25999725,67915.0,67899.0,0.07410874]
[1770464454077,0.25999825,67913.0,67898.0,0.014739]
[1770464454277,0.25999825,67913.0,67895.0,0.32495523]
[1770464454278,0.014735,67916.0,67899.0,0.21326805]
[1770464454486,0.014735,67916.0,67899.0,0.19852905]
[1770464454781,0.24526225,67912.0,67895.0,0.14955507]
[1770464455180,0.014737,67909.0,67895.0,0.14955507]
[1770464457591,0.014737,67909.0,67894.0,0.01474]
[1770464458181,0.014737,67909.0,67892.0,0.19673909]
[1770464459183,0.25999925,67909.0,67892.0,0.19673909]
[1770464459883,0.24526225,67906.0,67890.0,0.17540016]
[1770464460186,0.25999925,67906.0,67889.0,0.014741]
[1770464460383,0.25999925,67906.0,67891.0,0.21274254]
[1770464460579,0.24526225,67912.0,67891.0,0.21274254]
[1770464460778,0.014737,67908.0,67891.0,0.21274254]
[1770464461178,0.014737,67906.0,67891.0,0.21274254]
[1770464461379,0.014737,67906.0,67891.0,0.19800254]
[1770464461579,0.24526225,67906.0,67891.0,0.19800254]
[1770464462384,0.24526225,67906.0,67887.0,0.1505156]
[1770464462588,0.014739,67896.0,67887.0,0.1505156]
[1770464463284,0.014739,67896.0,67884.0,0.24284384]
[1770464463487,0.014736,67911.0,67894.0,0.01474]
[1770464463681,0.014736,67911.0,67895.0,0.24284384]
[1770464464076,0.014736,67911.0,67896.0,0.014739]
[1770464464279,0.24526225,67914.0,67898.0,0.25758284]
[1770464465488,0.014736,67913.0,67898.0,0.25758284]
[1770464465987,0.22017662,67914.0,67898.0,0.25758284]
[1770464466389,0.014736,67913.0,67898.0,0.25758284]
[1770464467082,0.014736,67913.0,67898.0,0.24284384]
[1770464467985,0.23149452,67928.0,67900.0,0.24957468]
[1770464468191,0.014735,67917.0,67900.0,0.24957468]
[1770464469490,0.014735,67915.0,67900.0,0.24957468]
[1770464469684,0.23149452,67919.0,67900.0,0.24957468]
[1770464469889,0.23620379,67910.0,67893.0,0.408073]
[1770464470091,0.23620379,67910.0,67893.0,0.23167442]
[1770464470991,0.23620379,67907.0,67887.0,0.3235695]
[1770464471187,0.23620379,67907.0,67887.0,0.14717092]
[1770464471388,0.014736,67913.0,67896.0,0.23167442]
[1770464471590,0.014735,67916.0,67898.0,0.23167442]
[1770464471990,0.25093879,67916.0,67898.0,0.23167442]
[1770464472394,0.014738,67903.0,67891.0,0.23167442]
[1770464472594,0.014738,67903.0,67890.0,0.01474]
[1770464472894,0.014738,67903.0,67887.0,0.14717092]
[1770464473099,0.014738,67903.0,67887.0,0.16191192]
[1770464473785,0.014738,67901.0,67887.0,0.16191192]
[1770464474387,0.014738,67904.0,67889.0,0.014741]
[1770464474601,0.014738,67904.0,67890.0,0.23167442]
[1770464475404,0.014738,67904.0,67887.0,0.14717092]
[1770464475405,0.014737,67907.0,67892.0,0.23167442]
[1770464475793,0.23620379,67921.0,67894.0,0.23167442]
[1770464476001,0.014736,67910.0,67894.0,0.24641442]
[1770464476305,0.23620379,67918.0,67894.0,0.24641442]
[1770464476500,0.014736,67911.0,67896.0,0.24641342]
[1770464480199,0.014736,67911.0,67898.0,0.014739]
[1770464480401,0.23620379,67918.0,67898.0,0.014739]
[1770464480705,0.014736,67912.0,67898.0,0.24641342]
[1770464481003,0.014736,67911.0,67898.0,0.23167442]
[1770464481597,0.014734,67922.0,67898.0,0.23167442]
[1770464481598,0.23620379,67914.0,67898.0,0.23167442]
[1770464481803,0.014737,67907.0,67898.0,0.23167442]
[1770464484315,0.23620379,67908.0,67891.0,0.23167442]
[1770464484517,0.23620379,67908.0,67889.0,0.17639858]
[1770464484708,0.23620379,67905.0,67888.0,0.19113958]
[1770464485715,0.014739,67900.0,67887.0,0.3383105]
[1770464486916,0.014739,67900.0,67887.0,0.19113958]
[1770464487914,0.014739,67900.0,67887.0,0.014741]
[1770464488112,0.014739,67900.0,67887.0,0.39461798]
[1770464490322,0.014739,67900.0,67887.0,0.24641542]
[1770464491619,0.014739,67900.0,67887.0,0.39678471]
[1770464491813,0.014735,67918.0,67886.0,0.17639858]
[1770464491814,0.23620379,67897.0,67886.0,0.17639858]
[1770464492015,0.23620379,67895.0,67881.0,0.23167442]
[1770464492217,0.23620379,67895.0,67880.0,0.14765999]
[1770464492722,0.014741,67888.0,67880.0,0.00013537]
[1770464492918,0.23620379,67895.0,67875.0,0.23167442]
[1770464493114,0.23620379,67892.0,67875.0,0.23167442]
[1770464493823,0.00013537,67891.0,67875.0,0.23167442]
[1770464494009,0.014741,67887.0,67875.0,0.23167442]
[1770464494214,0.23633916,67891.0,67869.0,0.14527856]
[1770464494215,0.23620379,67886.0,67869.0,5.8e-07]
[1770464494427,0.014745,67873.0,67863.0,0.23167442]
[1770464494615,0.014744,67876.0,67863.0,0.23167442]
[1770464494816,0.014743,67882.0,67863.0,0.23167442]
[1770464495323,0.014743,67880.0,67865.0,0.24642042]
[1770464495712,0.23620379,67880.0,67857.0,0.47233961]
[1770464496018,0.25097657,67884.0,67864.0,0.25345637]
[1770464496523,0.014743,67880.0,67864.0,0.25345637]
[1770464499423,0.25097657,67890.0,67867.0,0.25345637]
[1770464499823,0.25097657,67890.0,67871.0,0.25345637]
[1770464499824,0.014742,67886.0,67871.0,0.25345637]
[1770464500125,0.00013537,67891.0,67873.0,0.25345637]
[1770464500327,0.014741,67890.0,67875.0,0.25345637]
[1770464500929,0.014741,67890.0,67863.0,0.14760629]
[1770464500930,0.00013537,67891.0,67879.0,0.25345637]
[1770464501127,0.014739,67896.0,67881.0,0.25345637]
[1770464501625,0.25097657,67902.0,67881.0,0.25345637]
[1770464502126,0.014744,67877.0,67863.0,0.40106266]
[1770464502323,0.014744,67877.0,67864.0,0.25345637]
[1770464503129,0.014743,67878.0,67864.0,0.25345637]
[1770464503529,0.25097657,67883.0,67864.0,0.25345637]
[1770464503732,0.014744,67876.0,67864.0,0.25345637]
[1770464504736,0.25097657,67883.0,67852.0,0.00017906]
[1770464504737,0.014746,67865.0,67852.0,0.00017906]
[1770464505731,0.25097657,67870.0,67852.0,0.25363543]
[1770464505732,0.014746,67868.0,67852.0,0.25363543]
[1770464506030,0.014746,67868.0,67854.0,0.14831895]
[1770464506229,0.014746,67868.0,67852.0,0.25363543]
[1770464507325,0.014746,67864.0,67852.0,0.25363543]
[1770464507527,0.014746,67867.0,67852.0,0.25363543]
[1770464507726,0.014746,67865.0,67852.0,0.25363543]
[1770464507928,0.014747,67863.0,67852.0,0.25363543]
[1770464509223,0.01461063,67866.0,67852.0,0.25363543]
[1770464509629,0.014745,67869.0,67855.0,0.25345637]
[1770464509829,0.014745,67870.0,67857.0,0.25345637]
[1770464510131,0.014746,67868.0,67857.0,0.25345637]
[1770464512227,0.014746,67867.0,67857.0,0.25345637]
[1770464512437,0.014746,67865.0,67857.0,0.25345637]
[1770464514828,0.014746,67865.0,67854.0,0.14514849]
[1770464515031,0.014746,67865.0,67855.0,0.25345637]
[1770464521432,0.014743,67880.0,67855.0,0.25345637]
[1770464521638,0.014743,67879.0,67857.0,0.25345637]
[1770464521939,0.014744,67878.0,67857.0,0.25345637]
[1770464522136,0.014746,67865.0,67857.0,0.25345637]
[1770464522338,0.25097657,67871.0,67852.0,0.00017906]